{"text_format":"3","workbook":"xlsx","n_sheets":2,"sheets":["Summary","Waterproofing"],"read":"whole","date_system":"1900"}

{"sheet":"Summary","index":0,"n_rows":20,"n_cols":6,"rows_kept":20,"merged":[[19,2,19,4]]}
["BILL NO",null,"BILL DESCRIPTION","PAGE NO",null,"AMOUNT"]
[]
[null,null,"SUMMARY SECTION 1"]
[]
[]
[{"v":1,"d":"1 "},null,"Waterproofing",null,null,{"$f":"Waterproofing!G468","v":0}]
{"$rows_empty":13}
[null,null,"Grand Total carried to form of offer",null,null,{"$f":"SUM(F6:F6)","v":0}]

{"sheet":"Waterproofing","index":1,"n_rows":468,"n_cols":7,"rows_kept":468,"merged":[[0,0,0,6],[467,0,467,5]]}
[]
["ITEM NO","PAY REF","DESCRIPTION","UNIT","QTY.","RATE","AMOUNT"]
[]
[null,null,"SECTION NO. 2"]
[null,null,"BILL NO. 6"]
[]
[null,null,"Plant and Equipment"]
[]
[null,null,"Scaffolding"]
[]
[null,null,"Access to works, for working at height inclusive of rigging, scaffolding or any means to accordance with all applicable regulations and safety standards (this item will be priced with each Work Package)","Days",5]
[]
[null,null,"CALL OUT"]
[]
[null,null,"Call out fee for supervisor/Artisan to attend to site inspections","No",50]
[]
[null,null,"WATERPROOFING"]
[]
[null,null,"Standard Preambles"]
[]
[null,null,"The \"Construction Works: Specifications: General Specification (PW371-A) Edition 2.0\" and \"Construction Works: Specifications: General Specification (PW371-B) Edition 2.0\" obtainable on the Public Works Website: http://www.publicworks.gov.za/ under “Forms & Documents; Consultant’s Guidelines”; Item 2.2.1 and 2.2.2 or from the Departmental Project Manager/Leader should be read in support and extend the abbreviated bills of quantities descriptions by inter alia referring to SANS construction standards\n\nUsers are to ensure that the abbreviated descriptions when read in conjunction with the applicable measuring system, represents the full description by extending the abbreviated bills of quantities descriptions and/or by inserting appropriate preambles or specifications\n\nThe Standard Preambles and the Notes in the various trade bills are to apply equally to this section"]
[]
[null,null,"Waterproofing"]
[]
[null,null,"Waterproofing of roofs, basements, etc shall be laid under a ten year guarantee.  Waterproofing to roofs shall be laid to even falls to outlets etc with necessary ridges, hips and valleys. Descriptions of sheet or membrane waterproofing shall be deemed to include additional labour to turn-ups and turn-downs"]
[]
[null,null,"DAMPPROOFING OF WALLS AND FLOORS"]
[]
[null,null,"One layer 375 micron embossed polyethylene dampproof course (SANS 952-1985 type B)"]
[]
[{"v":1,"d":"1 "},null,"In walls","m²",10," "]
[]
[null,null,"Ditto 0 - 25","m²",1]
[]
[null,null,"One layer 250 micron green polyethylene waterproof sheeting (SANS 952-1985 type C) sealed at laps with PVC self-adhesive tape"]
[]
[{"$f":"A31+1","v":{"v":2,"d":"2 "}},null,"Under surface beds","m²",50]
[]
[null,null,"Ditto 0 - 50","m²",1]
[]
[{"$f":"A37+1","v":{"v":3,"d":"3 "}},null,"Vertically between walls","m²",50]
[]
[null,null,"Ditto 0 - 50","m²",1]
[]
[null,null,"One layer 375 micron orange polyethylene waterproof sheeting (SANS 952-1985 type A) sealed at laps with PVC self-adhesive tape"]
[]
[{"$f":"A41+1","v":{"v":4,"d":"4 "}},null,"Under surface beds","m²",50]
[]
[null,null,"Ditto 0 - 50","m²",1]
[]
[{"$f":"A47+1","v":{"v":5,"d":"5 "}},null,"Vertically between walls","m²",50]
[]
[null,null,"Ditto 0 - 50","m²",1]
[]
[null,null,"One layer 500 micron orange polyethylene waterproof sheeting (SANS 952-1985 type A) sealed at laps with PVC self-adhesive tape"]
[]
[{"$f":"A51+1","v":{"v":6,"d":"6 "}},null,"Vertically between walls","m²",50]
[]
[null,null,"Ditto 0 - 50","m²",1]
[]
[null,null,"Two coats \"Brixeal\" or similar approved, bitumen emulsion waterproof coating"]
[]
[{"$f":"A57+1","v":{"v":7,"d":"7 "}},null,"On concrete walls and columns in foundations","m²",20]
[]
[null,null,"Ditto 0 - 50","m²",1]
[]
[{"$f":"A63+1","v":{"v":8,"d":"8 "}},null,"On concrete walls, columns and beams","m²",20]
[]
[null,null,"Ditto 0 - 50","m²",1]
[]
[{"$f":"A67+1","v":{"v":9,"d":"9 "}},null,"On fair faced brick walls","m²",20]
[]
[null,null,"Ditto 0 - 50","m²",1]
[]
[{"$f":"A71+1","v":{"v":10,"d":"10 "}},null,"On bagged brick walls","m²",20]
[]
[null,null,"Ditto 0 - 50","m²",1]
[]
[null,null,"Two coats \"ABE dura.proof hydrokote\" or similar approved flexible hydraulic micro-mortar waterproofing and protection membrane, applied in accordance with the manufacturers instruction"]
[]
[{"$f":"A75+1","v":{"v":11,"d":"11 "}},null,"On shower walls","m²",10]
[]
[null,null,"Ditto 0 - 10","m²",1]
[]
[{"$f":"A81+1","v":{"v":12,"d":"12 "}},null,"On shower floors","m²",10]
[]
[null,null,"Ditto 0 - 10","m²",1]
[]
[null,null,"Two coats \"Duram Aquapel\" or similar approved silicone water repellant, applied in accordance with the manufacturers instruction"]
[]
[{"$f":"A85+1","v":{"v":13,"d":"13 "}},null,"On face brick walls","m²",50]
[]
[null,null,"Ditto 0 - 50","m²",1]
[]
[{"$f":"A91+1","v":{"v":14,"d":"14 "}},null,"On walls with \"Marmoran\" finish","m²",50]
[]
[null,null,"Ditto 0 - 50","m²",1]
[]
[null,null,"WATERPROOFING BASEMENTS, ROOFS, BALCONIES, ETC."]
[]
[null,null,"4mm Thick \"Derbigum SP4\" or similar approved waterproofing membrane including laps, turn-ups, turn-downs, etc and preparing and priming concrete or screeded surfaces laid in accordance with the manufacturers instruction"]
[]
[{"$f":"A95+1","v":{"v":15,"d":"15 "}},null,"On flat floors.","m²",50]
[]
[null,null,"Ditto 0 - 100","m²",1]
[]
[{"$f":"A103+1","v":{"v":16,"d":"16 "}},null,"On flat roofs","m²",50]
[]
[null,null,"Ditto 0 - 100","m²",1]
[]
[{"$f":"A107+1","v":{"v":17,"d":"17 "}},null,"On balcony floors","m²",20]
[]
[null,null,"Ditto 0 - 25","m²",1]
[]
[{"$f":"A111+1","v":{"v":18,"d":"18 "}},null,"On sloping floors.","m²",50]
[]
[null,null,"Ditto 0 - 100","m²",1]
[]
[{"$f":"A115+1","v":{"v":19,"d":"19 "}},null,"On sloping roofs","m²",50]
[]
[null,null,"Ditto 0 - 100","m²",1]
[]
[{"$f":"A119+1","v":{"v":20,"d":"20 "}},null,"On walls","m²",20]
[]
[null,null,"Ditto 0 - 25","m²",1]
[]
[{"$f":"A123+1","v":{"v":21,"d":"21 "}},null,"On turn-ups and turn-downs exceeding 300mm girth","m²",20]
[]
[null,null,"Ditto 0 - 25","m²",1]
[]
[{"$f":"A127+1","v":{"v":22,"d":"22 "}},null,"On tops and sides of inverted beams","m²",20]
[]
[null,null,"Ditto 0 - 25","m²",1]
[]
[{"$f":"A131+1","v":{"v":23,"d":"23 "}},null,"On bottoms and sides of floor ducts, channels, etc","m²",20]
[]
[null,null,"Ditto 0 - 25","m²",1]
[]
[]
[{"$f":"A135+1","v":{"v":24,"d":"24 "}},null,"On bottoms and sides of box gutters","m²",20]
[]
[null,null,"Ditto 0 - 25","m²",1]
[]
[{"$f":"A140+1","v":{"v":25,"d":"25 "}},null,"On bottoms and sides of plant boxes","m²",20]
[]
[null,null,"Ditto 0 - 25","m²",1]
[]
[{"$f":"A144+1","v":{"v":26,"d":"26 "}},null,"On internal surfaces of 300 x 300 x 300mm deep sump, catchpit, etc","No",2]
[]
[{"$f":"A148+1","v":{"v":27,"d":"27 "}},null,"Sealing edges to brickwork or concrete","m",20]
[]
[{"$f":"A150+1","v":{"v":28,"d":"28 "}},null,"Sealing edges to brickwork or concrete including trowelled mastic bead","m",20]
[]
[{"$f":"A152+1","v":{"v":29,"d":"29 "}},null,"Additional membrane 300mm girth at internal and external angles","m",20]
[]
[{"$f":"A154+1","v":{"v":30,"d":"30 "}},null,"Additional membrane 300mm girth at internal and external angles, circular on plan including forming darts as necessary","m",20]
[]
[{"$f":"A156+1","v":{"v":31,"d":"31 "}},null,"Bandage cover flashing strips 300mm girth at turn-ups, including sealing top edge with mastic in and including groove in brickwork","m",20]
[]
[{"$f":"A158+1","v":{"v":32,"d":"32 "}},null,"Dressing and sealing into 100mm internal diameter outlet, including additional membrane","No",2]
[]
[{"$f":"A160+1","v":{"v":33,"d":"33 "}},null,"Dressing and sealing around pipe not exceeding 100mm external diameter, including additional membrane, gussets, collars, etc","No",2]
[]
[null,null,"5mm Thick \"Derbigum SP5\" or similar approved waterproofing membrane including laps, turn-ups, turn-downs, etc and preparing and priming concrete or screeded surfaces laid in accordance with the manufacturers instruction"]
[]
[{"$f":"A162+1","v":{"v":34,"d":"34 "}},null,"On flat floors.","m²",50]
[]
[null,null,"Ditto 0 - 100","m²",1]
[]
[{"$f":"A166+1","v":{"v":35,"d":"35 "}},null,"On flat roofs","m²",50]
[]
[null,null,"Ditto 101 - above","m²",1]
[]
[{"$f":"A170+1","v":{"v":36,"d":"36 "}},null,"On sloping floors.","m²",50]
[]
[null,null,"Ditto 0 - 100","m²",1]
[]
[{"$f":"A174+1","v":{"v":37,"d":"37 "}},null,"On sloping roofs","m²",50]
[]
[null,null,"Ditto 0 - 100","m²",1]
[]
[{"$f":"A178+1","v":{"v":38,"d":"38 "}},null,"On turn-ups and turn-downs exceeding 300mm girth","m²",20]
[]
[null,null,"Ditto 0 - 25","m²",1]
[]
[{"$f":"A182+1","v":{"v":39,"d":"39 "}},null,"Sealing edges to brickwork or concrete","m",20]
[]
[{"$f":"A186+1","v":{"v":40,"d":"40 "}},null,"Sealing edges to brickwork or concrete including trowelled mastic bead","m",20]
[]
[{"$f":"A188+1","v":{"v":41,"d":"41 "}},null,"Dressing and sealing into 100mm internal diameter outlet, including additional membrane","No",20]
[]
[{"$f":"A190+1","v":{"v":42,"d":"42 "}},null,"Dressing and sealing around pipe not exceeding 100mm external diameter, including additional membrane, gussets, collars, etc","No",20]
[]
[null,null,"4mm Thick \"Derbigum SP4\" or similar approved waterproofing membrane including laps, turn-ups, turn-downs, etc and preparing and fixing 2mm thick \"Derbigum CG2\" interdek underlay on timber surfaces laid in accordance with the manufacturers instruction"]
[]
[{"$f":"A192+1","v":{"v":43,"d":"43 "}},null,"On flat floors.","m²",50]
[]
[null,null,"Ditto 0 - 100","m²",1]
[]
[{"$f":"A196+1","v":{"v":44,"d":"44 "}},null,"On flat roofs","m²",50]
[]
[null,null,"Ditto 0 - 100","m²",1]
[]
[{"$f":"A200+1","v":{"v":45,"d":"45 "}},null,"On sloping floors.","m²",50]
[]
[null,null,"Ditto 0 - 100","m²",1]
[]
[{"$f":"A204+1","v":{"v":46,"d":"46 "}},null,"On sloping roofs","m²",30]
[]
[null,null,"Ditto 0 - 100","m²",1]
[]
[{"$f":"A208+1","v":{"v":47,"d":"47 "}},null,"On turn-ups and turn-downs exceeding 300mm girth","m²",20]
[]
[null,null,"Ditto 0 - 25","m²",1]
[]
[{"$f":"A212+1","v":{"v":48,"d":"48 "}},null,"Sealing edges to brickwork or concrete","m",20]
[]
[{"$f":"A216+1","v":{"v":49,"d":"49 "}},null,"Sealing edges to brickwork or concrete including trowelled mastic bead","m",20]
[]
[{"$f":"A218+1","v":{"v":50,"d":"50 "}},null,"Dressing and sealing into 100mm internal diameter outlet, including additional membrane","No",2]
[]
[{"$f":"A220+1","v":{"v":51,"d":"51 "}},null,"Dressing and sealing around pipe not exceeding 100mm external diameter, including additional membrane, gussets, collars, etc","No",2]
[]
[{"$f":"A222+1","v":{"v":52,"d":"52 "}},null,"50 x 50mm Triangular fillets","m",20]
[]
[null,null,"4mm Thick \"Derbigum SP4\" or similar approved waterproofing membrane including laps, turn-ups, turn-downs, etc and preparing and fixing 3mm thick \"Derbigum CG3\" interdek underlay on timber surfaces laid in accordance with the manufacturers instruction"]
[]
[{"$f":"A224+1","v":{"v":53,"d":"53 "}},null,"On flat floors.","m²",50]
[]
[null,null,"Ditto 0 - 100","m²",1]
[]
[{"$f":"A228+1","v":{"v":54,"d":"54 "}},null,"On flat roofs","m²",50]
[]
[null,null,"Ditto 0 - 100","m²",1]
[]
[{"$f":"A232+1","v":{"v":55,"d":"55 "}},null,"On sloping floors.","m²",50]
[]
[null,null,"Ditto 0 - 100","m²",1]
[]
[{"$f":"A236+1","v":{"v":56,"d":"56 "}},null,"On sloping roofs","m²",50]
[]
[null,null,"Ditto 0 - 100","m²",1]
[]
[{"$f":"A240+1","v":{"v":57,"d":"57 "}},null,"On turn-ups and turn-downs exceeding 300mm girth","m²",20]
[]
[null,null,"Ditto 0 - 100","m²",1]
[]
[{"$f":"A244+1","v":{"v":58,"d":"58 "}},null,"Sealing edges to brickwork or concrete","m",20]
[]
[{"$f":"A248+1","v":{"v":59,"d":"59 "}},null,"Sealing edges to brickwork or concrete including trowelled mastic bead","m",20]
[]
[{"$f":"A250+1","v":{"v":60,"d":"60 "}},null,"Dressing and sealing into 100mm internal diameter outlet, including additional membrane","No",2]
[]
[{"$f":"A252+1","v":{"v":61,"d":"61 "}},null,"Dressing and sealing around pipe not exceeding 100mm external diameter, including additional membrane, gussets, collars, etc","No",2]
[]
[{"$f":"A254+1","v":{"v":62,"d":"62 "}},null,"50 x 50mm Triangular fillets","m",20]
[]
[null,null,"Bituthene 3000 or similar approved high performance waterproofing membrane for sub-structure and flat deck application laid in accordance with the manufacturers instruction"]
[]
[{"$f":"A256+1","v":{"v":63,"d":"63 "}},null,"On parapet walls, treads and risers of stairs, etc.","m²",50]
[]
[null,null,"Ditto 0 - 25","m²",1]
[]
[{"$f":"A260+1","v":{"v":64,"d":"64 "}},null,"Extra over for two additional layers at expansion joints","m",20]
[]
[{"$f":"A264+1","v":{"v":65,"d":"65 "}},null,"Additional membrane 300mm girth at internal and external angles","m",20]
[]
[{"$f":"A266+1","v":{"v":66,"d":"66 "}},null,"Additional membrane and sealing into 100mm diameter outlet","No",2]
[]
[{"$f":"A268+1","v":{"v":67,"d":"67 "}},null,"Fibreglass counter flashing 300mm girth","m",20]
[]
[{"$f":"A270+1","v":{"v":68,"d":"68 "}},null,"30 x 30mm Triangular fillets","m",20]
[]
[{"$f":"A272+1","v":{"v":69,"d":"69 "}},null,"Sealing edges to brickwork or concrete","m",20]
[]
[null,null,"Bituthene 5000 or similar approved composite membrane incorporating high performance moisture and water resistant rubberised asphalt with tough, puncture and heat resistant polypropylene reinforcing mesh laid in accordance with the manufacturers instruction"]
[]
[{"$f":"A274+1","v":{"v":70,"d":"70 "}},null,"On parking deck","m²",50]
[]
[null,null,"Ditto 0 - 100","m²",1]
[]
[{"$f":"A278+1","v":{"v":71,"d":"71 "}},null,"Extra over for two additional layers at expansion joints","m",20]
[]
[{"$f":"A282+1","v":{"v":72,"d":"72 "}},null,"Additional membrane 300mm girth at internal and external angles","m",20]
[]
[{"$f":"A284+1","v":{"v":73,"d":"73 "}},null,"Additional membrane and sealing into 100mm diameter outlet","No",2]
[]
[{"$f":"A286+1","v":{"v":74,"d":"74 "}},null,"Fibreglass counter flashing 300mm girth","m",20]
[]
[{"$f":"A288+1","v":{"v":75,"d":"75 "}},null,"30 x 30mm Triangular fillets","m",20]
[]
[{"$f":"A290+1","v":{"v":76,"d":"76 "}},null,"Sealing edges to brickwork or concrete","m",20]
[]
[null,null,"Apply two coats of grey coloured \"Aqua-mite\" or similar approved waterproof coating in accordance with the manufacturers instruction"]
[]
[{"$f":"A292+1","v":{"v":77,"d":"77 "}},null,"On bottoms and sides of fibreglass box gutters","m²",30]
[]
[{"$f":"A296+1","v":{"v":78,"d":"78 "}},null,"On valley linings","m",20]
[]
[null,null,"Apply base coat with membrane and three coats \"Duram Flexikote\" or similar approved waterproof membrane in accordance with the manufacturers instruction"]
[]
[{"$f":"A298+1","v":{"v":79,"d":"79 "}},null,"On concrete roof tiles in patches","m²",20]
[]
[null,null,"ABEseal or similar approved glassfibre reinforced waterproofing membrane including laps, turn-ups, turn-downs, etc and preparing and priming surfaces"]
[]
[{"$f":"A302+1","v":{"v":80,"d":"80 "}},null,"Flashing strip 150mm girth in sealing edge of waterproofing membrane to plastered walls","m",20]
[]
[{"$f":"A306+1","v":{"v":81,"d":"81 "}},null,"Flashing strip 250mm girth in sealing edge of corrugated iron roof sheeting to plastered walls","m",20]
[]
[{"$f":"A308+1","v":{"v":82,"d":"82 "}},null,"Flashing strip 250mm girth in sealing end of IBR pattern steel roof sheeting to concrete walls","m",20]
[]
[{"$f":"A310+1","v":{"v":83,"d":"83 "}},null,"Flashing strip 250mm girth in sealing corrugated iron roof sheeting around cast iron pipe not exceeding 100mm diameter","No",2]
[]
[{"$f":"A312+1","v":{"v":84,"d":"84 "}},null,"Flashing strip 250mm girth in sealing concrete roofing tiles around PVC pipe not exceeding 110mm diameter","No",2]
[]
[null,null,"0,6mm Galvanised sheet steel flashings"]
[]
[{"$f":"A314+1","v":{"v":85,"d":"85 "}},null,"Cover flashings 150mm girth, including sealing top edge with mastic in and including groove in brickwork","m",20]
[]
[null,null,"Clean crushed stone dressing free of pyrite or other contaminants, of 20 - 25mm stone evenly spread with larger stones around outlets"]
[]
[{"$f":"A318+1","v":{"v":86,"d":"86 "}},null,"50mm Thick on waterproofing to flat roofs","m²",50]
[]
[null,null,"Ditto 0 - 100","m²",1]
[]
[null,null,"Clean river stone pebble dressing of 20 - 30mm pebbles evenly spread with larger stones around outlets"]
[]
[{"$f":"A322+1","v":{"v":87,"d":"87 "}},null,"50mm Thick on waterproofing to flat roofs","m²",50]
[]
[null,null,"Ditto 0 - 100","m²",1]
[]
[null,null,"Two coats bituminous aluminium paint"]
[]
[{"$f":"A328+1","v":{"v":88,"d":"88 "}},null,"On waterproofing to roofs","m²",100]
[]
[null,null,"Ditto 0 - 100","m²",1]
[]
[{"$f":"A334+1","v":{"v":89,"d":"89 "}},null,"On waterproofing to box gutters","m²",20]
[]
[null,null,"Ditto 0 - 25","m²",1]
[]
[null,null,"Two coats heavy duty acrylic emulsion paint"]
[]
[{"$f":"A338+1","v":{"v":90,"d":"90 "}},null,"On waterproofing to roofs","m²",200]
[]
[null,null,"Ditto 0 - 100","m²",1]
[]
[{"$f":"A344+1","v":{"v":91,"d":"91 "}},null,"On waterproofing to box gutters","m²",20]
[]
[null,null,"Ditto 0 - 25","m²",1]
[]
[null,null,"WATERSTOPS, SEALING STRIPS, JOINT SEALANTS, ETC"]
[]
[null,null,"Pre-compressed bitumen impregnated foam plastic joint sealing strips"]
[]
[{"$f":"A348+1","v":{"v":92,"d":"92 "}},null,"10 x 30mm In joints between frames and walls","m",20]
[]
[{"$f":"A356+1","v":{"v":93,"d":"93 "}},null,"10 x 40mm In expansion joints","m",20]
[]
[null,null,"Approved silicone sealing compound applied with a pressure caulking gun"]
[]
[{"$f":"A358+1","v":{"v":94,"d":"94 "}},null,"Between timber door or window frames and plaster","m",50]
[]
[{"$f":"A362+1","v":{"v":95,"d":"95 "}},null,"Between timber door or window frames and face brickwork","m",50]
[]
[{"$f":"A364+1","v":{"v":96,"d":"96 "}},null,"Between metal door or window frames and plaster","m",50]
[]
[{"$f":"A366+1","v":{"v":97,"d":"97 "}},null,"Between metal door or window frames and face brickwork","m",50]
[]
[{"$f":"A368+1","v":{"v":98,"d":"98 "}},null,"Between aluminium door or window frames and plaster","m",50]
[]
[{"$f":"A370+1","v":{"v":99,"d":"99 "}},null,"Between aluminium door or window frames and face brickwork","m",50]
[]
[{"$f":"A372+1","v":{"v":100,"d":"100 "}},null,"Between joinery fittings and plaster","m",50]
[]
[{"$f":"A374+1","v":{"v":101,"d":"101 "}},null,"Between joinery fittings and face brickwork","m",50]
[]
[{"$f":"A376+1","v":{"v":102,"d":"102 "}},null,"Between ceramic sanitary fittings and plaster","m",50]
[]
[{"$f":"A378+1","v":{"v":103,"d":"103 "}},null,"Between ceramic sanitary fittings and tiling","m",50]
[]
[{"$f":"A380+1","v":{"v":104,"d":"104 "}},null,"Between stainless steel ceramic sanitary fittings and plaster","m",20]
[]
[{"$f":"A382+1","v":{"v":105,"d":"105 "}},null,"Between stainless steel ceramic sanitary fittings and tiling","m",20]
[]
[{"$f":"A384+1","v":{"v":106,"d":"106 "}},null,"Between acrylic sanitary fittings and plaster","m",20]
[]
[{"$f":"A386+1","v":{"v":107,"d":"107 "}},null,"Between acrylic sanitary fittings and tiling","m",20]
[]
[null,null,"Approved acrylic sealing compound applied with a pressure caulking gun"]
[]
[{"$f":"A388+1","v":{"v":108,"d":"108 "}},null,"Between timber door or window frames and plaster","m",50]
[]
[{"$f":"A392+1","v":{"v":109,"d":"109 "}},null,"Between timber door or window frames and face brickwork","m",50]
[]
[{"$f":"A394+1","v":{"v":110,"d":"110 "}},null,"Between metal door or window frames and plaster","m",50]
[]
[{"$f":"A396+1","v":{"v":111,"d":"111 "}},null,"Between metal door or window frames and face brickwork","m",50]
[]
[{"$f":"A398+1","v":{"v":112,"d":"112 "}},null,"Between aluminium door or window frames and plaster","m",50]
[]
[{"$f":"A400+1","v":{"v":113,"d":"113 "}},null,"Between aluminium door or window frames and face brickwork","m",50]
[]
[{"$f":"A402+1","v":{"v":114,"d":"114 "}},null,"Between joinery fittings and plaster","m",50]
[]
[{"$f":"A404+1","v":{"v":115,"d":"115 "}},null,"Between joinery fittings and face brickwork","m",50]
[]
[{"$f":"A406+1","v":{"v":116,"d":"116 "}},null,"Between timber skirting or cornice and plaster","m",50]
[]
[{"$f":"A408+1","v":{"v":117,"d":"117 "}},null,"Between timber skirting or cornice and face brickwork","m",50]
[]
[{"$f":"A410+1","v":{"v":118,"d":"118 "}},null,"Between gypsum plasterboard cornices timber skirting and plaster","m",50]
[]
[{"$f":"A412+1","v":{"v":119,"d":"119 "}},null,"Between gypsum plasterboard cornices timber skirting and face brickwork","m",50]
[]
[{"$f":"A414+1","v":{"v":120,"d":"120 "}},null,"Between polystyrene cornices and plaster","m",50]
[]
[{"$f":"A416+1","v":{"v":121,"d":"121 "}},null,"Between polystyrene cornices and face brickwork","m",50]
[]
[null,null,"Silicone sealing compound including backing cord, bond breaker, primer, etc"]
[]
[{"$f":"A418+1","v":{"v":122,"d":"122 "}},null,"6 x 10mm In saw cut joints in floors","m",50]
[]
[{"$f":"A422+1","v":{"v":123,"d":"123 "}},null,"10 x 15mm In expansion joints in tiled floors etc","m",50]
[]
[{"$f":"A424+1","v":{"v":124,"d":"124 "}},null,"6 x 10mm In expansion joints in tiled walls etc","m",50]
[]
[{"$f":"A426+1","v":{"v":125,"d":"125 "}},null,"10 x 15mm In expansion joints in floors including raking out expansion joint filler as necessary","m",50]
[]
[{"$f":"A428+1","v":{"v":126,"d":"126 "}},null,"10 x 15mm In expansion joints in walls etc including raking out expansion joint filler as necessary","m",50]
[]
[null,null,"Mastic sealing compound including backing cord, bond breaker, primer, etc"]
[]
[{"$f":"A430+1","v":{"v":127,"d":"127 "}},null,"6 x 10mm In saw cut joints in floors","m",50]
[]
[{"$f":"A434+1","v":{"v":128,"d":"128 "}},null,"10 x 15mm In expansion joints in tiled floors etc","m",50]
[]
[{"$f":"A436+1","v":{"v":129,"d":"129 "}},null,"6 x 10mm In expansion joints in tiled walls etc","m",50]
[]
[{"$f":"A438+1","v":{"v":130,"d":"130 "}},null,"10 x 15mm In expansion joints in floors including raking out expansion joint filler as necessary","m",50]
[]
[{"$f":"A440+1","v":{"v":131,"d":"131 "}},null,"10 x 15mm In expansion joints in walls etc including raking out expansion joint filler as necessary","m",50]
[]
[null,null,"Two-part grey polysulphide sealing compound including backing cord, bond breaker, primer, etc"]
[]
[{"$f":"A442+1","v":{"v":132,"d":"132 "}},null,"6 x 10mm In saw cut joints in floors","m",50]
[]
[{"$f":"A446+1","v":{"v":133,"d":"133 "}},null,"10 x 15mm In expansion joints in tiled floors etc","m",50]
[]
[{"$f":"A448+1","v":{"v":134,"d":"134 "}},null,"6 x 10mm In expansion joints in tiled walls etc","m",50]
[]
[{"$f":"A450+1","v":{"v":135,"d":"135 "}},null,"10 x 15mm In expansion joints in floors including raking out expansion joint filler as necessary","m",50]
[]
[{"$f":"A452+1","v":{"v":136,"d":"136 "}},null,"10 x 15mm In expansion joints in walls etc including raking out expansion joint filler as necessary","m",50]
[]
[null,null,"Polyurethane sealing compound including backing cord, bond breaker, primer, etc"]
[]
[{"$f":"A454+1","v":{"v":137,"d":"137 "}},null,"6 x 10mm In saw cut joints in floors","m",50]
[]
[{"$f":"A458+1","v":{"v":138,"d":"138 "}},null,"10 x 15mm In expansion joints in tiled floors etc","m",50]
[]
[{"$f":"A460+1","v":{"v":139,"d":"139 "}},null,"6 x 10mm In expansion joints in tiled walls etc","m",50]
[]
[{"$f":"A462+1","v":{"v":140,"d":"140 "}},null,"10 x 15mm In expansion joints in floors including raking out expansion joint filler as necessary","m",50]
[]
[{"$f":"A464+1","v":{"v":141,"d":"141 "}},null,"10 x 15mm In expansion joints in walls etc including raking out expansion joint filler as necessary","m",50]
[]
["Carried to Section No. 2 Summary"]